bitfinex/quotes_BTCUSD_20250617
["timestamp","ask_amount","ask_price","bid_price","bid_amount"]
[1750189997887,1.62279267,105110.0,105100.0,0.0011423]
[1750189999209,1.33411329,105110.0,105100.0,0.0001423]
[1750189999424,0.11626899,105110.0,105100.0,0.0001423]
[1750189999678,0.99318658,105110.0,105100.0,0.0001423]
[1750189999919,0.98371338,105110.0,105100.0,0.0001423]
[1750190000149,0.9741999,105110.0,105100.0,0.0001423]
[1750190000580,1.07034912,105110.0,105100.0,0.0001423]
[1750190000855,1.0023999,105110.0,105100.0,0.0001423]
[1750190001716,0.49423236,105110.0,105100.0,0.0001423]
[1750190002009,0.9760999,105110.0,105100.0,0.0001423]
[1750190004029,0.98561338,105110.0,105100.0,0.0001423]
[1750190005118,0.47744584,105110.0,105100.0,0.0001423]
[1750190005356,0.31144584,105110.0,105100.0,0.0001423]
[1750190005601,0.98565338,105110.0,105100.0,0.0001423]
[1750190005847,0.98265338,105110.0,105100.0,0.0001423]
[1750190006089,0.98465338,105110.0,105100.0,0.0001423]
[1750190006335,0.63784955,105110.0,105100.0,0.0302423]
[1750190006570,1.00156024,105110.0,105100.0,0.0302423]
[1750190007016,0.99104704,105110.0,105100.0,0.0302423]
[1750190007282,0.0019,105110.0,105100.0,0.0302423]
[1750190007498,0.0039,105110.0,105100.0,0.0591423]
[1750190007750,0.0019,105110.0,105100.0,0.0591423]
[1750190008520,0.0029,105110.0,105100.0,0.0591423]
[1750190008993,0.0019,105110.0,105100.0,0.0591423]
[1750190009205,0.0019,105110.0,105100.0,0.0601423]
[1750190009883,0.0019,105110.0,105100.0,0.0621423]
[1750190010101,0.0019,105110.0,105100.0,0.15838406]
[1750190014931,0.0019,105110.0,105100.0,0.66892991]
[1750190015146,0.0019,105110.0,105100.0,1.01606634]
[1750190015596,0.0019,105110.0,105100.0,1.2304167]
[1750190015814,0.0019,105110.0,105100.0,1.23041679]
[1750190016034,0.0019,105110.0,105100.0,1.23993126]
[1750190016269,0.0019,105110.0,105100.0,1.24944564]
[1750190016483,0.0019,105110.0,105100.0,1.22090214]
[1750190016696,0.0019,105110.0,105100.0,1.23993099]
[1750190016905,0.0019,105110.0,105100.0,1.2494451]
[1750190017124,0.0019,105110.0,105100.0,0.51292491]
[1750190017373,0.0019,105110.0,105100.0,1.22090196]
[1750190017799,0.0019,105110.0,105100.0,1.23993045]
[1750190018010,0.0019,105110.0,105100.0,1.43326196]
[1750190018194,0.0019,105110.0,105100.0,1.23341245]
[1750190018456,0.0019,105110.0,105100.0,1.44273652]
[1750190018670,0.0019,105110.0,105100.0,0.49838406]
[1750190018885,0.0019,105110.0,105100.0,0.71066406]
[1750190019318,0.0019,105110.0,105100.0,0.73919806]
[1750190020412,0.0019,105110.0,105100.0,0.52695806]
[1750190020636,0.0019,105110.0,105100.0,0.4021423]
[1750190020851,0.0019,105110.0,105100.0,0.5677023]
[1750190023734,0.0019,105110.0,105100.0,0.4021423]
[1750190023945,0.0019,105110.0,105100.0,0.5675823]
[1750190024364,0.0019,105110.0,105100.0,0.66382406]
[1750190024584,0.0019,105110.0,105100.0,1.37180111]
[1750190024802,0.0019,105110.0,105100.0,1.39082978]
[1750190025029,0.0019,105110.0,105100.0,1.40034389]
[1750190025253,0.0019,105110.0,105100.0,1.40034398]
[1750190025462,0.0019,105110.0,105100.0,1.39082978]
[1750190026106,0.0019,105110.0,105100.0,1.37180111]
[1750190026313,0.0019,105110.0,105100.0,1.38131549]
[1750190026529,0.0019,105110.0,105100.0,1.3908296]
[1750190026751,0.0019,105110.0,105100.0,1.40537045]
[1750190026970,0.0019,105110.0,105100.0,1.40537063]
[1750190027208,0.0019,105110.0,105100.0,1.42439894]
[1750190028326,0.0019,105110.0,105100.0,1.39585634]
[1750190028532,0.0019,105110.0,105100.0,1.40537045]
[1750190030699,0.0019,105110.0,105100.0,1.45105045]
[1750190030907,0.0019,105110.0,105100.0,1.47962145]
[1750190031365,4e-05,105140.0,105100.0,2.51238045]
[1750190031574,4e-05,105140.0,105130.0,0.77413198]
[1750190031786,4e-05,105140.0,105130.0,1.38464541]
[1750190032214,4e-05,105140.0,105130.0,1.44027689]
[1750190032433,4e-05,105140.0,105130.0,1.44978828]
[1750190033104,4e-05,105140.0,105130.0,1.45378828]
[1750190033318,4e-05,105140.0,105130.0,1.48235328]
[1750190033757,4e-05,105140.0,105130.0,1.4781977]
[1750190034031,4e-05,105140.0,105130.0,1.46868603]
[1750190034231,4e-05,105140.0,105130.0,1.46880612]
[1750190034445,4e-05,105140.0,105130.0,1.48231788]
[1750190034875,4e-05,105140.0,105130.0,1.49182946]
[1750190035096,4e-05,105140.0,105130.0,1.50134094]
[1750190035315,4e-05,105140.0,105130.0,0.97391034]
[1750190035528,4e-05,105140.0,105130.0,1.49158955]
[1750190036167,4e-05,105140.0,105130.0,1.50110113]
[1750190036384,4e-05,105140.0,105130.0,1.48207788]
[1750190036642,4e-05,105140.0,105130.0,1.50110103]
[1750190036853,4e-05,105140.0,105130.0,1.49158955]
[1750190037067,4e-05,105140.0,105130.0,1.4915891]
[1750190037286,4e-05,105140.0,105130.0,1.48207752]
[1750190037729,4e-05,105140.0,105130.0,1.50110058]
[1750190038002,0.00164,105140.0,105130.0,1.50110058]
[1750190038225,0.00164,105140.0,105130.0,1.50110012]
[1750190038903,0.00164,105140.0,105130.0,0.99293258]
[1750190039149,0.00164,105140.0,105130.0,1.50110012]
[1750190040212,0.00164,105140.0,105130.0,1.48207725]
[1750190040438,0.00164,105140.0,105130.0,1.45318224]
[1750190040695,0.00164,105140.0,105130.0,1.48171733]
[1750190040925,0.00164,105140.0,105130.0,1.49122872]
[1750190042406,0.00164,105140.0,105130.0,0.7346147]
[1750190042620,0.00164,105140.0,105130.0,1.47216567]
[1750190042840,0.00164,105140.0,105130.0,1.48167706]
[1750190043049,0.00164,105140.0,105130.0,1.49621791]
[1750190044959,0.00164,105140.0,105130.0,2.46238691]
[1750190045172,0.00016604,105140.0,105130.0,2.53750823]
[1750190045434,0.00016604,105140.0,105130.0,1.86800223]
[1750190047595,0.00016604,105140.0,105130.0,2.15910223]
[1750190047807,0.07691938,105190.0,105170.0,0.2368815]
[1750190048022,0.07691938,105190.0,105180.0,0.16412]
[1750190048271,0.07691938,105190.0,105180.0,0.19362]
[1750190048920,0.07691938,105190.0,105180.0,0.28986176]
[1750190049148,0.07691938,105190.0,105180.0,0.31715377]
[1750190049367,0.07991938,105190.0,105180.0,0.31715377]
[1750190050497,0.07991938,105190.0,105180.0,0.12583377]
[1750190050706,0.58808692,105190.0,105180.0,9.201e-05]
[1750190050922,0.61660519,105190.0,105180.0,9.201e-05]
[1750190051163,0.81624384,105190.0,105180.0,9.201e-05]
[1750190051398,0.90417357,105190.0,105180.0,9.201e-05]
[1750190051606,0.71404143,105190.0,105180.0,9.201e-05]
[1750190051831,0.90417357,105190.0,105180.0,9.201e-05]
[1750190052252,0.71404143,105190.0,105180.0,9.201e-05]
[1750190052463,0.20587335,105190.0,105180.0,9.201e-05]
[1750190052670,0.19636711,105190.0,105180.0,9.201e-05]
[1750190052876,0.72354704,105190.0,105180.0,9.201e-05]
[1750190053146,0.71404071,105190.0,105180.0,9.201e-05]
[1750190053354,0.73305337,105190.0,105180.0,9.201e-05]
[1750190053569,0.73305346,105190.0,105180.0,9.201e-05]
[1750190053776,0.74809388,105190.0,105180.0,9.201e-05]
[1750190053981,0.93822602,105190.0,105180.0,9.201e-05]
[1750190054372,0.91921399,105190.0,105180.0,9.201e-05]
[1750190055039,0.84229461,105190.0,105180.0,9.201e-05]
[1750190055247,0.85180121,105190.0,105180.0,9.201e-05]
[1750190055457,0.84229497,105190.0,105180.0,9.201e-05]
[1750190058879,0.14399493,105190.0,105180.0,9.201e-05]
[1750190059088,0.16300732,105190.0,105180.0,9.201e-05]
[1750190059295,0.861307,105190.0,105180.0,9.201e-05]
[1750190059728,1.00613479,105190.0,105180.0,9.201e-05]
[1750190059934,1.00617479,105190.0,105180.0,9.201e-05]
[1750190060144,1.17071564,105190.0,105180.0,9.201e-05]
[1750190060352,1.32071564,105190.0,105180.0,9.201e-05]
[1750190060560,1.68346393,105190.0,105180.0,9.201e-05]
[1750190060820,1.66071564,105190.0,105180.0,9.201e-05]
[1750190061024,1.68346418,105190.0,105180.0,9.201e-05]
[1750190063146,0.75685664,105190.0,105180.0,9.201e-05]
[1750190063382,0.13333385,105190.0,105180.0,9.201e-05]
[1750190063597,0.01808042,105190.0,105180.0,9.201e-05]
[1750190063808,0.00304,105190.0,105180.0,0.05669201]
[1750190064917,0.01254588,105190.0,105180.0,0.05669201]
[1750190065131,0.53972563,105190.0,105180.0,9.201e-05]
[1750190065355,0.54923187,105190.0,105180.0,9.201e-05]
[1750190065569,0.53021948,105190.0,105180.0,9.201e-05]
[1750190065992,0.53972563,105190.0,105180.0,9.201e-05]
[1750190066200,0.03155809,105190.0,105180.0,9.201e-05]
[1750190066414,0.00304,105190.0,105180.0,9.201e-05]
[1750190066620,0.03155809,105190.0,105180.0,9.201e-05]
[1750190066829,0.031558,105190.0,105180.0,9.201e-05]
[1750190067465,0.04106424,105190.0,105180.0,9.201e-05]
[1750190067675,0.031558,105190.0,105180.0,9.201e-05]
[1750190067881,0.01254588,105190.0,105180.0,9.201e-05]
[1750190068090,0.02305203,105190.0,105180.0,9.201e-05]
[1750190068518,0.5502325,105190.0,105180.0,9.201e-05]
[1750190068730,0.32843886,105190.0,105180.0,9.201e-05]
[1750190068941,0.8366064,105190.0,105180.0,9.201e-05]
[1750190069150,0.62746133,105190.0,105180.0,9.201e-05]
[1750190069358,0.63696766,105190.0,105180.0,9.201e-05]
[1750190069782,0.6464739,105190.0,105180.0,9.201e-05]
[1750190069988,0.64647381,105190.0,105180.0,9.201e-05]
[1750190070423,0.61795509,105190.0,105180.0,9.201e-05]
[1750190070860,0.6084493,105190.0,105180.0,9.201e-05]
[1750190071085,0.00404,105190.0,105180.0,0.05639201]
[1750190080287,0.00404,105190.0,105180.0,0.34278398]
[1750190080718,0.00404,105190.0,105180.0,0.37130541]
[1750190080927,0.00404,105190.0,105180.0,0.87947295]
[1750190081142,0.00404,105190.0,105180.0,1.21947295]
[1750190083524,0.00104,105190.0,105180.0,1.21947295]
[1750190083951,0.00204,105190.0,105180.0,1.2340138]
[1750190085966,0.00204,105190.0,105180.0,1.2350138]
[1750190086103,0.00104,105190.0,105180.0,1.2350138]
[1750190086519,0.00104,105190.0,105180.0,1.2380138]
[1750190087376,0.00104,105190.0,105180.0,1.4032138]
[1750190087610,0.00104,105190.0,105180.0,1.4030938]
[1750190087814,0.00104,105190.0,105180.0,0.72984626]
[1750190088021,0.00104,105190.0,105180.0,0.89488626]
[1750190088437,0.00104,105190.0,105180.0,1.4030538]
[1750190090589,0.41691938,105250.0,105220.0,0.0561]
[1750190090590,0.12295938,105250.0,105220.0,0.0561]
[1750190090812,0.23820206,105250.0,105220.0,0.22134]
[1750190091228,0.07691938,105230.0,105220.0,0.22134]
[1750190091447,0.07691938,105230.0,105220.0,0.0279]
[1750190091657,0.61359418,105230.0,105220.0,0.16528]
[1750190091873,0.60409155,105230.0,105220.0,9.201e-05]
[1750190092082,0.5945891,105230.0,105220.0,9.201e-05]
[1750190092336,0.0105,105240.0,105220.0,9.201e-05]
[1750190092570,0.5945891,105230.0,105220.0,9.201e-05]
[1750190092779,0.07691938,105230.0,105220.0,9.201e-05]
[1750190093418,0.08642156,105230.0,105220.0,9.201e-05]
[1750190093632,0.07691938,105230.0,105220.0,9.201e-05]
[1750190093842,0.08842156,105230.0,105220.0,9.201e-05]
[1750190094064,0.07891938,105230.0,105220.0,9.201e-05]
[1750190094274,0.08842156,105230.0,105220.0,9.201e-05]
[1750190094680,0.002,105230.0,105220.0,9.201e-05]
[1750190095709,0.01150227,105230.0,105220.0,9.201e-05]
[1750190096226,0.52917226,105230.0,105220.0,9.201e-05]
[1750190096437,0.5386748,105230.0,105220.0,9.201e-05]
[1750190096639,0.54817761,105230.0,105220.0,9.201e-05]
[1750190096819,0.5463748,105230.0,105220.0,9.201e-05]
[1750190097052,0.55587752,105230.0,105220.0,9.201e-05]
[1750190097437,0.35874341,105230.0,105220.0,9.201e-05]
[1750190097679,0.36824577,105230.0,105220.0,9.201e-05]
[1750190098275,0.36824568,105230.0,105220.0,9.201e-05]
[1750190099060,0.03620726,105230.0,105220.0,9.201e-05]
[1750190099267,0.5366748,105230.0,105220.0,9.201e-05]
[1750190099671,0.54617752,105230.0,105220.0,9.201e-05]
[1750190099917,0.5366748,105230.0,105220.0,9.201e-05]
[1750190100298,0.5366748,105230.0,105160.0,0.19018259]
[1750190100299,1.62090887,105230.0,105160.0,0.19018259]
[1750190100505,0.51767432,105180.0,105170.0,0.15004176]
[1750190100680,0.51767432,105180.0,105170.0,0.0269]
[1750190100886,0.52718128,105180.0,105160.0,0.05567369]
[1750190101093,0.54619575,105180.0,105160.0,0.05567369]
[1750190101308,0.5509216,105180.0,105160.0,0.05567369]
[1750190101531,0.01901565,105170.0,105160.0,0.05567369]
[1750190101745,0.20918394,105170.0,105160.0,0.05567369]
[1750190101958,0.03803193,105170.0,105160.0,0.02867369]
[1750190102158,0.03803184,105170.0,105160.0,0.02867369]
[1750190102355,0.04754025,105170.0,105160.0,0.02867369]
[1750190102636,0.04754016,105170.0,105160.0,0.02867369]
[1750190102832,0.03803184,105170.0,105160.0,0.02867369]
[1750190103044,0.00950769,105170.0,105160.0,0.02867369]
[1750190103244,0.72206541,105180.0,105160.0,0.02867369]
[1750190103245,0.54141528,105180.0,105160.0,0.02867369]
[1750190103453,0.00950778,105170.0,105160.0,0.05517369]
[1750190103613,0.01901574,105170.0,105160.0,0.05517369]
[1750190103835,0.00950778,105170.0,105160.0,0.05717369]
[1750190104026,0.01901583,105170.0,105160.0,0.05517369]
[1750190104423,0.00950778,105170.0,105160.0,0.05717369]
[1750190104678,0.01901574,105170.0,105160.0,0.05717369]
[1750190104883,0.00950778,105170.0,105160.0,0.05717369]
[1750190105389,0.2351406,105180.0,105160.0,0.05717369]
[1750190105515,0.43479863,105180.0,105160.0,0.05817369]
[1750190105707,0.00950778,105170.0,105160.0,0.05817369]
[1750190106122,4e-05,105170.0,105160.0,0.06017369]
[1750190106361,4e-05,105170.0,105160.0,0.05917369]
[1750190106717,0.01905583,105170.0,105160.0,0.05917369]
[1750190106982,0.00954778,105170.0,105160.0,0.05917369]
[1750190107218,0.03807175,105170.0,105160.0,0.05917369]
[1750190107775,0.00954778,105170.0,105160.0,0.05917369]
[1750190107953,4e-05,105170.0,105160.0,0.05917369]
[1750190108152,0.01905565,105170.0,105160.0,0.05677369]
[1750190108379,0.0285637,105170.0,105160.0,0.05677369]
[1750190108628,0.72690007,105170.0,105160.0,0.004]
[1750190109061,0.52722346,105170.0,105160.0,0.004]
[1750190109285,0.20922457,105170.0,105160.0,0.004]
[1750190109489,1.59306113,105170.0,105160.0,0.004]
[1750190109693,1.5681541,105170.0,105160.0,0.004]
[1750190110155,0.02852613,105160.0,105150.0,0.0264]
[1750190110358,0.04754457,105160.0,105150.0,0.0264]
[1750190110578,0.01901908,105150.0,105140.0,0.0264]
[1750190110786,0.01902089,105140.0,105100.0,0.23779116]
[1750190110989,0.73643343,105140.0,105120.0,0.0264]
[1750190111136,0.2282667,105140.0,105120.0,0.0539]
[1750190111340,0.0095113,105130.0,105120.0,0.0539]
[1750190111557,0.1518318,105150.0,105120.0,0.0539]
[1750190111902,0.0095104,105140.0,105130.0,0.0539]
[1750190112116,0.68852864,105150.0,105130.0,0.0539]
[1750190112337,0.02853201,105140.0,105130.0,0.0539]
[1750190112557,0.02853201,105140.0,105110.0,0.0532]
[1750190112558,0.93865997,105140.0,105110.0,0.0532]
[1750190112781,0.77846055,105140.0,105130.0,4.741e-05]
[1750190113021,0.10575216,105140.0,105130.0,4.741e-05]
[1750190113224,0.11007733,105140.0,105130.0,0.05444741]
[1750190113430,0.34309822,105140.0,105130.0,0.05444741]
[1750190113641,0.13860889,105140.0,105130.0,0.05444741]
[1750190113858,1.06047074,105140.0,105130.0,4.741e-05]
[1750190114090,1.43847375,105140.0,105130.0,4.741e-05]
[1750190114312,1.40373034,105140.0,105130.0,4.741e-05]
[1750190114520,1.55373034,105140.0,105130.0,4.741e-05]
[1750190115579,1.34077034,105140.0,105130.0,4.741e-05]
[1750190115795,1.55477034,105140.0,105130.0,4.741e-05]
[1750190116006,1.64991956,105140.0,105130.0,4.741e-05]
[1750190116451,1.65391956,105140.0,105130.0,4.741e-05]
[1750190116883,1.65791956,105140.0,105130.0,4.741e-05]
[1750190117094,1.56621034,105140.0,105130.0,4.741e-05]
[1750190117513,1.0580428,105140.0,105130.0,4.741e-05]
[1750190117753,1.56621034,105140.0,105130.0,4.741e-05]
[1750190120349,1.34777034,105140.0,105130.0,4.741e-05]
[1750190120567,1.55915034,105140.0,105130.0,4.741e-05]
[1750190121287,1.0509828,105140.0,105130.0,4.741e-05]
[1750190121524,1.55915034,105140.0,105130.0,4.741e-05]
[1750190121993,1.55515034,105140.0,105130.0,4.741e-05]
[1750190122233,1.0489828,105140.0,105130.0,4.741e-05]
[1750190122471,1.32352949,105140.0,105130.0,4.741e-05]
[1750190122726,0.11211733,105140.0,105130.0,0.05474741]
[1750190123038,0.01355049,105140.0,105130.0,0.05474741]
[1750190123311,0.00404,105140.0,105130.0,0.05474741]
[1750190123563,0.0135504,105140.0,105130.0,0.05474741]
[1750190123837,0.03257165,105140.0,105130.0,0.05474741]
[1750190124097,0.00404,105140.0,105130.0,0.05474741]
[1750190124613,0.00404,105140.0,105130.0,0.26401167]
[1750190124829,0.00404,105140.0,105130.0,0.2545]
[1750190125049,0.00404,105140.0,105130.0,0.05474741]
[1750190125695,0.51771794,105140.0,105130.0,0.05474741]
[1750190125906,0.51771803,105140.0,105130.0,0.05474741]
[1750190126117,0.51771803,105140.0,105130.0,0.06374741]
[1750190126118,4e-05,105140.0,105130.0,0.06374741]
[1750190126324,0.0095504,105140.0,105130.0,0.05774741]
[1750190126532,0.00955031,105140.0,105130.0,0.05774741]
[1750190126739,4e-05,105140.0,105130.0,0.06174741]
[1750190127155,4e-05,105140.0,105130.0,0.05874741]
[1750190127362,0.0095504,105140.0,105130.0,0.05874741]
[1750190127569,0.0095504,105140.0,105130.0,0.05974741]
[1750190127803,4e-05,105140.0,105130.0,0.05974741]
[1750190128016,0.01906116,105140.0,105130.0,0.05974741]
[1750190128239,0.01906107,105140.0,105130.0,0.05974741]
[1750190128652,0.00955049,105140.0,105130.0,0.05974741]
[1750190129067,0.01906116,105140.0,105130.0,0.05874741]
[1750190129253,0.00955049,105140.0,105130.0,0.05474741]
[1750190129499,4e-05,105140.0,105130.0,0.05674741]
[1750190129706,4e-05,105140.0,105130.0,0.05474741]
[1750190130131,0.00104,105140.0,105130.0,0.88193236]
[1750190130342,0.00104,105140.0,105130.0,0.87793236]
[1750190130756,0.00104,105140.0,105130.0,0.5532096]
[1750190130978,0.00104,105140.0,105130.0,0.32150917]
[1750190131185,0.00104,105140.0,105130.0,0.53077361]
[1750190131392,0.00104,105140.0,105130.0,0.53177361]
[1750190131604,0.00104,105140.0,105130.0,0.05574741]
[1750190131823,0.00104,105140.0,105130.0,0.05774741]
[1750190132028,0.01055031,105140.0,105130.0,0.05574741]
[1750190132256,0.01055031,105140.0,105130.0,0.05974741]
[1750190132677,0.00104,105140.0,105130.0,0.05974741]
[1750190133539,0.01055031,105140.0,105130.0,0.05974741]
[1750190133952,0.00104,105140.0,105130.0,0.05974741]
[1750190135719,0.0105504,105140.0,105130.0,0.05974741]
[1750190136156,0.00104,105140.0,105130.0,0.05574741]
[1750190136368,0.00104,105140.0,105130.0,0.05774741]
[1750190136369,0.02006089,105140.0,105130.0,0.05774741]
[1750190136585,0.5377391,105140.0,105130.0,0.05774741]
[1750190136858,0.5567608,105140.0,105130.0,0.05774741]
[1750190137071,0.54725004,105140.0,105130.0,0.05774741]
[1750190137279,0.02006089,105140.0,105130.0,0.05674741]
[1750190137695,0.02957165,105140.0,105130.0,0.05674741]
[1750190137901,0.00104,105140.0,105130.0,0.05674741]
[1750190138130,0.00104,105140.0,105130.0,0.05874741]
[1750190138763,0.01055031,105140.0,105130.0,0.05874741]
[1750190138977,0.00104,105140.0,105130.0,0.05874741]
[1750190139182,0.02006125,105140.0,105130.0,0.05874741]
[1750190139394,0.82420441,105140.0,105130.0,0.00404741]
[1750190139601,0.80518298,105140.0,105130.0,0.00404741]
[1750190139813,0.89182108,105140.0,105130.0,0.00404741]
[1750190140023,0.96655186,105140.0,105130.0,0.00404741]
[1750190140237,0.98929971,105140.0,105130.0,0.00404741]
[1750190141717,1.15384056,105140.0,105130.0,0.00404741]
[1750190141957,1.16334056,105140.0,105130.0,0.00404741]
[1750190142163,1.16404056,105140.0,105130.0,0.00404741]
[1750190142408,1.50404056,105140.0,105130.0,0.00404741]
[1750190142837,1.53249112,105140.0,105130.0,0.00404741]
[1750190143697,1.50404056,105140.0,105130.0,0.00404741]
[1750190143905,1.53249112,105140.0,105130.0,0.00404741]
[1750190144109,1.53449112,105140.0,105130.0,0.00404741]
[1750190144320,1.53449112,105140.0,105130.0,4.741e-05]
[1750190144583,1.53249112,105140.0,105130.0,4.741e-05]
[1750190144794,1.53849112,105140.0,105130.0,4.741e-05]
[1750190145002,1.53649112,105140.0,105130.0,4.741e-05]
[1750190145210,1.54049112,105140.0,105130.0,4.741e-05]
[1750190145829,1.63062623,105140.0,105130.0,4.741e-05]
[1750190146041,1.63729472,105140.0,105130.0,4.741e-05]
[1750190146257,1.68729472,105140.0,105130.0,4.741e-05]
[1750190146673,1.72518366,105140.0,105130.0,4.741e-05]
[1750190147296,1.63504855,105140.0,105130.0,4.741e-05]
[1750190148125,1.63504782,105140.0,105130.0,4.741e-05]
[1750190149416,1.59715888,105140.0,105130.0,4.741e-05]
[1750190149831,1.63504782,105140.0,105130.0,4.741e-05]
[1750190150042,1.59715888,105140.0,105130.0,4.741e-05]
[1750190150258,1.73119704,105140.0,105130.0,4.741e-05]
[1750190150495,0.68670273,105140.0,105130.0,4.741e-05]
[1750190150703,1.38677971,105140.0,105130.0,0.05594741]
[1750190150924,1.38677971,105140.0,105130.0,4.741e-05]
[1750190151573,1.40132056,105140.0,105130.0,4.741e-05]
[1750190151780,1.40232056,105140.0,105130.0,4.741e-05]
[1750190151987,1.39832056,105140.0,105130.0,4.741e-05]
[1750190152243,1.53508746,105140.0,105130.0,4.741e-05]
[1750190152483,1.58778754,105140.0,105130.0,4.741e-05]
[1750190152915,1.53708754,105140.0,105130.0,4.741e-05]
[1750190153151,1.43143832,105140.0,105130.0,4.741e-05]
[1750190153365,1.57477112,105140.0,105130.0,4.741e-05]
[1750190153579,1.62477112,105140.0,105130.0,4.741e-05]
[1750190153739,1.63627112,105140.0,105130.0,4.741e-05]
[1750190153954,1.57677112,105140.0,105130.0,4.741e-05]
[1750190154161,1.57277112,105140.0,105130.0,4.741e-05]
[1750190154607,1.55232056,105140.0,105130.0,4.741e-05]
[1750190154817,1.55208056,105140.0,105130.0,4.741e-05]
[1750190155319,1.56228056,105140.0,105130.0,4.741e-05]
[1750190155542,1.64730978,105140.0,105130.0,4.741e-05]
[1750190155985,1.74750978,105140.0,105130.0,4.741e-05]
[1750190156196,1.64730978,105140.0,105130.0,4.741e-05]
[1750190156642,1.84730978,105140.0,105130.0,4.741e-05]
[1750190156856,1.87576034,105140.0,105130.0,4.741e-05]
[1750190157069,1.88242408,105140.0,105130.0,4.741e-05]
[1750190157275,1.79739481,105140.0,105130.0,4.741e-05]
[1750190157485,1.79073112,105140.0,105130.0,4.741e-05]
[1750190157696,1.76228056,105140.0,105130.0,4.741e-05]
[1750190157906,1.76158056,105140.0,105130.0,4.741e-05]
[1750190158114,1.75208056,105140.0,105130.0,4.741e-05]
[1750190160368,1.84822978,105140.0,105130.0,4.741e-05]
[1750190160593,1.75918056,105140.0,105130.0,4.741e-05]
[1750190160829,1.75918056,105140.0,105100.0,0.458723]
[1750190160830,0.02405451,105110.0,105100.0,0.458723]
[1750190161053,1.27960444,105110.0,105100.0,0.3482653]
[1750190161289,1.30235172,105110.0,105100.0,0.3482653]
[1750190161504,1.47709294,105110.0,105100.0,0.30025356]
[1750190161722,1.48489294,105110.0,105100.0,0.17225356]
[1750190161938,1.45630094,105110.0,105100.0,0.17225356]
[1750190162170,1.46296637,105110.0,105100.0,0.17225356]
[1750190162401,1.24584637,105110.0,105100.0,0.17225356]
[1750190162659,1.87409769,105110.0,105100.0,0.12504356]
[1750190162930,1.87409769,105110.0,105070.0,0.0551]
[1750190162931,0.20936364,105080.0,105070.0,0.0551]
[1750190163141,1.6023204,105080.0,105070.0,0.0639389]
[1750190163352,0.19986657,105070.0,105060.0,0.0278]
[1750190163572,0.80622119,105070.0,105060.0,0.05551186]
[1750190164060,0.98450662,105070.0,105060.0,0.06433348]
[1750190164284,0.98450662,105070.0,105060.0,0.06438068]
[1750190164499,0.48775095,105070.0,105060.0,0.06438068]
[1750190164709,1.02411774,105070.0,105060.0,0.06438068]
[1750190165163,1.02411774,105070.0,105060.0,0.05555906]
[1750190165164,0.35916438,105070.0,105060.0,0.05555906]
[1750190165375,0.57806506,105070.0,105060.0,0.05555906]
[1750190165584,0.35678506,105070.0,105060.0,0.05555906]
[1750190165786,1.078661,105070.0,105060.0,0.05547115]
[1750190166211,0.56854814,105070.0,105060.0,0.06047115]
[1750190166424,1.078661,105070.0,105060.0,0.06047115]
[1750190166833,1.078701,105070.0,105060.0,0.06047115]
[1750190167956,0.907061,105070.0,105060.0,0.06047115]
[1750190168158,1.078781,105070.0,105060.0,0.06047115]
[1750190168368,0.34730814,105070.0,105060.0,0.06047115]
[1750190168570,0.03784226,105070.0,105060.0,0.06047115]
[1750190168802,0.04163816,105070.0,105060.0,0.06047115]
[1750190169042,0.06067163,105070.0,105060.0,0.06047115]
[1750190169241,0.01907347,105070.0,105060.0,0.06047115]
[1750190169454,0.02859038,105070.0,105060.0,0.06047115]
[1750190169701,0.07827029,105070.0,105060.0,0.06047115]
[1750190169903,0.08778739,105070.0,105060.0,0.06047115]
[1750190170126,0.40031732,105070.0,105060.0,0.0050472]
[1750190170363,1.60733136,105070.0,105060.0,0.01386303]
[1750190170611,1.60733136,105070.0,105060.0,0.0050472]
[1750190170848,0.20942344,105050.0,105040.0,0.0531]
[1750190171082,0.8958563,105050.0,105040.0,0.06239453]
[1750190171312,0.38574344,105050.0,105040.0,0.06239453]
[1750190171536,0.43790344,105050.0,105040.0,0.06239453]
[1750190171768,0.87905557,105050.0,105040.0,0.06239453]
[1750190171991,0.58802389,105050.0,105040.0,0.06239453]
[1750190172252,1.09813675,105050.0,105040.0,0.06239453]
[1750190172474,1.09913675,105050.0,105040.0,0.06339453]
[1750190172733,0.16051855,105050.0,105040.0,0.06339453]
[1750190172977,0.09724176,105050.0,105040.0,0.06339453]
[1750190173195,0.17883759,105050.0,105040.0,0.06339453]
[1750190173409,0.03059574,105050.0,105040.0,0.06339453]
[1750190173627,0.02107701,105050.0,105040.0,0.06339453]
[1750190173855,0.00204,105050.0,105040.0,0.06339453]
[1750190174134,0.00204,105050.0,105040.0,0.0545731]
[1750190174340,0.01155846,105050.0,105040.0,0.0545731]
[1750190174759,0.03059601,105050.0,105040.0,0.0545731]
[1750190174964,0.0401151,105050.0,105040.0,0.0633767]
[1750190175176,0.0401151,105050.0,105040.0,0.0623767]
[1750190175418,0.0401151,105050.0,105040.0,0.0633767]
[1750190175635,0.03059601,105050.0,105040.0,0.0633767]
[1750190175857,0.03059601,105050.0,105040.0,0.0545731]
[1750190176068,0.02959601,105050.0,105040.0,0.0545731]
[1750190176293,0.02959601,105050.0,105040.0,0.0555731]
[1750190176698,0.0200771,105050.0,105040.0,0.0555731]
[1750190176918,0.02959592,105050.0,105040.0,0.0555731]
[1750190177127,0.03911492,105050.0,105040.0,0.0555731]
[1750190177343,0.02959592,105050.0,105040.0,0.0555731]
[1750190178017,0.03911492,105050.0,105040.0,0.0555731]
[1750190178228,0.02959592,105050.0,105040.0,0.0555731]
[1750190178455,0.00104,105050.0,105040.0,0.0555731]
[1750190179515,0.00104,105050.0,105040.0,0.26501684]
[1750190179720,0.00104,105050.0,105040.0,0.25549693]
[1750190179925,0.00104,105050.0,105040.0,0.0555731]
[1750190181194,0.00104,105050.0,105040.0,0.06509328]
[1750190181412,0.00104,105050.0,105040.0,0.0555731]
[1750190182092,0.00104,105050.0,105040.0,0.24597675]
[1750190182303,0.00104,105050.0,105040.0,0.0555731]
[1750190182926,0.00104,105050.0,105040.0,0.26501702]
[1750190183194,0.00104,105050.0,105040.0,0.27453693]
[1750190183399,0.00104,105050.0,105040.0,0.29357629]
[1750190183607,0.00104,105050.0,105040.0,0.26501702]
[1750190184235,0.00104,105050.0,105040.0,0.0555731]
[1750190188930,0.00104,105050.0,105040.0,0.25549684]
[1750190189147,0.00104,105050.0,105040.0,0.27453657]
[1750190189270,0.00104,105050.0,105040.0,0.26501675]
[1750190189474,0.00104,105050.0,105040.0,0.0555731]
[1750190191278,0.00104,105050.0,105040.0,0.25549684]
[1750190191524,0.00104,105050.0,105040.0,0.0555731]
[1750190191754,0.07111528,105060.0,105050.0,0.057]
[1750190191755,0.06159782,105060.0,105050.0,0.057]
[1750190191962,0.07111528,105060.0,105050.0,0.057]
[1750190192171,0.06159755,105060.0,105050.0,0.057]
[1750190192569,0.07111537,105060.0,105050.0,0.057]
[1750190192837,0.07111528,105060.0,105050.0,0.057]
[1750190193077,0.07111519,105060.0,105050.0,0.058]
[1750190193318,0.64122397,105070.0,105050.0,0.058]
[1750190193567,0.62796718,105070.0,105060.0,0.0568]